lending/lending_fUSD_20250418
["ID","MTS","AMOUNT","RATE_DAILY","PERIOD"]
[358349293,1744971033395,-200.0,0.00052125,30]
[358349294,1744971033405,-200.0,0.00052125,30]
[358349295,1744971033415,-336.299999,0.00052125,30]
[358349296,1744971033426,-299.68326322,0.00052125,60]
[358349297,1744971033435,-3238.8765822,0.000522,30]
[358349298,1744971033446,-161.49,0.00052325,120]
[358349299,1744971033456,-272.46,0.00052652,120]
[358349300,1744971033466,-5473.45833661,0.00052701,2]
[358349301,1744971033481,-25573.41906339,0.00052701,2]
[358349302,1744971033491,-2188.0,0.00052801,7]
[358349303,1744971033503,-7587.43627392,0.00053176,15]
[358349304,1744971033513,-1000.0,0.00053276,120]
[358349305,1744971033523,-500.0,0.000534,2]
[358349306,1744971033533,-332.29,0.00053727,2]
[358349307,1744971033543,-280.23678123,0.0005413,10]
[358349308,1744971033552,-479.78846199,0.0005413,10]
[358349309,1744971033563,-152.35918784,0.0005413,10]
[358349310,1744971033573,-290.48154422,0.0005413,10]
[358349311,1744971033584,-500.0,0.0005413,10]
[358349312,1744971033595,-161.13113937,0.0005413,10]
[358349313,1744971033606,-500.0,0.0005413,10]
[358349314,1744971033617,-158.32020602,0.0005413,10]
[358349315,1744971033627,-301.80563935,0.0005413,5]
[358349316,1744971033637,-1000.0,0.00054594,2]
[358349317,1744971033646,-2500.0,0.00054594,2]
[358349318,1744971033657,-17571.91965259,0.00054694,2]
[358349319,1744971033669,-4309.6899302,0.00054694,2]
[358349320,1744971033696,-19375.26231721,0.00054694,2]
[358349321,1744971033707,-508.74136213,0.00054695,80]
[358349322,1744971033716,-500.0,0.00054695,2]
[358349323,1744971033725,-2000.0,0.00054794,2]
[358349324,1744971033736,-2000.0,0.00054794,2]
[358349325,1744971033745,-154.504372,0.00054795,2]
[358349326,1744971033755,-262.88238468,0.00054795,120]
[358349327,1744971033764,-500.0,0.00054795,120]
[358349328,1744971033774,-150.0,0.00054795,120]
[358349329,1744971033783,-500.0,0.00054795,120]
[358349330,1744971033794,-150.0,0.00054795,120]
[358349331,1744971033803,-150.0,0.00054795,120]
[358349332,1744971033812,-500.0,0.00054795,60]
[358349333,1744971033822,-150.0,0.00054795,120]
[358349334,1744971033832,-150.75420148,0.00054795,120]
[358349335,1744971033841,-275.91926744,0.00054795,120]
[358349336,1744971033850,-150.0,0.00054795,120]
[358349337,1744971033859,-500.0,0.00054795,120]
[358349338,1744971033869,-500.0,0.00054795,120]
[358349339,1744971033878,-155.1566903,0.00054795,120]
[358349340,1744971033888,-500.0,0.00054795,120]
[358349341,1744971033898,-500.0,0.00054795,120]
[358349342,1744971033906,-150.0,0.00054795,2]
[358349343,1744971033916,-500.0,0.00054795,120]
[358349344,1744971033925,-150.0,0.00054795,120]
[358349345,1744971033935,-311.74397242,0.0005485,58]
[358349346,1744971033944,-2114.0,0.00055,120]
[358349347,1744971033954,-332.29,0.00055991,2]
[358349348,1744971033963,-7587.43627386,0.00056145,15]
[358349349,1744971033972,-272.46,0.00057918,120]
[358349350,1744971033982,-1000.0,0.00058019,2]
[358349351,1744971033992,-1000.0,0.00058119,120]
[358349352,1744971034002,-332.29,0.00058255,2]
[358349353,1744971034012,-161.49,0.00058549,120]
[358349354,1744971034022,-10683.0347,0.000588,2]
[358349355,1744971034031,-417.56742278,0.00058879,2]
[358349356,1744971034041,-99978.54459934,0.000589,90]
[358349357,1744971034050,-10799.52268593,0.00059015,15]
[358349358,1744971034060,-7587.43627386,0.00059115,15]
[358349359,1744971034069,-550.58,0.00059594,119]
[358349360,1744971034079,-332.29,0.00060519,2]
[358349361,1744971034088,-450.95,0.00060699,30]
[358349362,1744971034098,-10799.5226859,0.00061336,15]
[358349363,1744971034108,-7587.43627386,0.00062084,15]
[358349364,1744971034117,-600.0,0.00062412,120]
[358349365,1744971034126,-332.29,0.00062783,2]
[358349366,1744971034135,-272.46,0.00063183,120]
[358349367,1744971034144,-10799.5226859,0.00063656,15]
[358349368,1744971034153,-500.0,0.00064304,120]
[358349369,1744971034162,-161.49,0.00064773,120]
[358349370,1744971034172,-1569.73516741,0.00064958,5]
[358349371,1744971034182,-332.29,0.00065047,2]
[358349372,1744971034191,-7587.43627386,0.00065053,15]
[358349373,1744971034201,-10799.5226859,0.00065977,15]
[358349374,1744971034211,-380.0,0.00066,120]
[358349375,1744971034220,-311.74397242,0.000665,106]
[358349376,1744971034230,-22000.0,0.000666,120]
[358349377,1744971034240,-1000.0,0.00067,14]
[358349378,1744971034250,-1000.0,0.00067,14]
[358349379,1744971034259,-332.29,0.0006731,2]
[358349380,1744971034269,-300.0,0.00068,120]
[358349381,1744971034278,-190.0,0.00068,120]
[358349382,1744971034287,-7587.43627386,0.00068023,15]
[358349383,1744971034297,-836.672186,0.000682,40]
[358349384,1744971034306,-10799.5226859,0.00068297,15]
[358349385,1744971034316,-1581.0,0.000683,14]
[358349386,1744971034326,-1000.0,0.000683,14]
[358349387,1744971034335,-501.87414195,0.00068473,5]
[358349388,1744971034345,-500.0,0.00068494,120]
[358349389,1744971034355,-150.0,0.00068494,120]
[358349390,1744971034365,-500.0,0.00068494,120]
[358349391,1744971034375,-150.0,0.00068494,120]
[358349392,1744971034384,-279.55938051,0.00068494,120]
[358349393,1744971034393,-500.0,0.00068494,60]
[358349394,1744971034403,-150.0,0.00068494,120]
[358349395,1744971034412,-150.81477092,0.00068494,120]
[358349396,1744971034422,-500.0,0.00068494,120]
[358349397,1744971034432,-500.0,0.00068494,120]
[358349398,1744971034442,-500.0,0.00068494,120]
[358349399,1744971034451,-500.0,0.00068494,120]
[358349400,1744971034460,-500.0,0.00068494,120]
[358349401,1744971034471,-150.0,0.00068494,120]
[358349402,1744971034480,-501.07861048,0.00068657,2]
[358349403,1744971034489,-332.29,0.00069574,2]
[358349404,1744971034499,-1279.31132642,0.0006978,30]
[358349405,1744971034509,-788.0,0.000701,30]
[358349406,1744971034517,-6647.63278559,0.00070618,15]
[358349407,1744971034557,-701.07839585,0.00049153,120]
[358349408,1744971034566,-701.07839585,0.00049153,120]
[358349409,1744971034575,-4151.88990031,0.00070618,15]
[358349410,1744971034585,-907.0,0.00070638,120]
[358349411,1744971034594,-545.0,0.00070638,120]
[358349412,1744971034604,-1455.498,0.00070638,120]
[358349413,1744971034613,-583.571,0.00070638,120]
[358349414,1744971034627,-4152.0,0.00070638,120]
[358349415,1744971034636,-500.0,0.00070643,120]
[358349416,1744971034646,-7587.43627386,0.00070992,15]
[358349417,1744971034655,-161.49,0.00070997,120]
[358349418,1744971034666,-155.558,0.00071512,2]
[358349419,1744971034675,-154.497,0.00071512,120]
[358349420,1744971034684,-2144.0,0.00071512,2]
[358349421,1744971034696,-4007.249,0.00071512,120]
[358349422,1744971034705,-874.168,0.00071512,120]
[358349423,1744971034715,-500.0,0.00071745,120]
[358349424,1744971034723,-332.29,0.00071838,2]
[358349425,1744971034733,-10799.5226859,0.00072938,15]
[358349426,1744971034745,-500.0,0.00073276,120]
[358349427,1744971034755,-152.24,0.00073628,120]
[358349428,1744971034764,-907.0,0.00073638,120]
[358349429,1744971034773,-545.0,0.00073638,120]
[358349430,1744971034783,-1440.0,0.00073638,120]
[358349431,1744971034792,-576.0,0.00073638,120]
[358349432,1744971034802,-4152.0,0.00073638,120]
[358349433,1744971034811,-1104.39110264,0.00073739,2]
[358349434,1744971034819,-7587.43627386,0.00073961,15]
[358349435,1744971034829,-409.55503902,0.0007399,6]
[358349436,1744971034838,-672.12996322,0.00073998,120]
[358349437,1744971034847,-14452.79596574,0.00074,120]
[358349438,1744971034856,-332.29,0.00074102,2]
[358349439,1744971034864,-4775.9452464,0.00074399,120]
[358349440,1744971034873,-152.0,0.00074512,2]
[358349441,1744971034882,-152.0,0.00074512,120]
[358349442,1744971034891,-2137.0,0.00074512,2]
[358349443,1744971034900,-3969.0,0.00074512,120]
[358349444,1744971034910,-866.0,0.00074512,120]
[358349445,1744971034920,-153.2,0.000746,72]
[358349446,1744971034930,-153.2,0.000746,72]
[358349447,1744971034940,-153.2,0.000746,72]
[358349448,1744971034949,-153.2,0.000746,72]
[358349449,1744971034959,-153.2,0.000746,72]
[358349450,1744971034968,-153.2,0.000746,72]
[358349451,1744971034978,-153.2,0.000746,72]
[358349452,1744971034987,-153.2,0.000746,72]
[358349453,1744971034996,-153.2,0.000746,72]
[358349454,1744971035007,-153.2,0.000746,72]
[358349455,1744971035017,-300.0,0.000748,27]
[358349456,1744971035026,-286.7425597,0.000749,58]
[358349457,1744971035036,-600.0,0.000749,27]
[358349458,1744971035045,-156.73245421,0.000749,58]
[358349459,1744971035055,-1638.22015608,0.0007498,6]
[358349460,1744971035064,-2457.33023412,0.0007499,6]
[358349461,1744971035074,-152.24,0.0007499,120]
[358349462,1744971035083,-152.24,0.0007499,120]
[358349463,1744971035092,-152.24,0.0007499,120]
[358349464,1744971035102,-193.53089107,0.0007499,7]
[358349465,1744971035111,-1000.0,0.00075,120]
[358349466,1744971035120,-1000.0,0.00075,120]
[358349467,1744971035130,-300.0,0.00075,2]
[358349468,1744971035138,-70115.10500529,0.00075,120]
[358349469,1744971035152,-42487.0576893,0.00075,120]
[358349470,1744971035171,-687.92150937,0.00075,120]
[358349471,1744971035191,-701.07839585,0.00049153,120]
[358349472,1744971035201,-6655.21498505,0.00075,120]
[358349475,1744971038398,-701.07839585,0.00049153,120]
[358349476,1744971038409,-701.07839585,0.00049153,120]
[358349477,1744971038418,-701.07839585,0.00049153,120]
[358349478,1744971038428,-701.07839585,0.00049153,120]
[358349479,1744971038438,-701.07839585,0.00049153,120]
[358349480,1744971038448,-701.07839585,0.00049153,120]
[358349481,1744971038458,-701.07839585,0.00049153,120]
[358349482,1744971038468,-701.07839585,0.00049153,120]
[358349483,1744971038477,-701.07839585,0.00049153,120]
[358349484,1744971038487,-244772.22959089,0.00075,120]
[358349485,1744971038666,-540.00000005,0.00075,120]
[358349486,1744971038677,-336.99408786,0.00075,120]
[358349487,1744971038689,-11351.06250518,0.00075,120]
[358349488,1744971038703,-407.57,0.00075,120]
[358349489,1744971038714,-3162.03984205,0.00075,120]
[358349491,1744971040709,-1610.88355995,0.00075,120]
[358349500,1744971043304,-2.22e-06,0.00075,120]
[358349501,1744971044740,-1.46150696,0.00075,120]
[358349504,1744971046265,-760.35684005,0.00075,120]
[358349505,1744971046320,-9471.92439145,0.00075,120]
[358349506,1744971046334,-2025.12887412,0.00075,120]
[358349507,1744971046551,-946.04894518,0.00075,120]
[358349508,1744971046629,-2050.73618957,0.00075,120]
[358349872,1744971071634,1986.13056491,0.00017,2]
[358349873,1744971908642,2109593.76059622,0.0002,2]
[358349874,1744971908671,100000.0,0.0002,2]
[358349875,1744971908696,288000.0,0.0002,2]
[358349876,1744971938100,-443.57307113,0.000199,2]
[358349877,1744971958560,250.0,0.00017,2]
[358349878,1744971959650,300.0,0.00019,2]
[358349883,1744972028089,-170.33371239,0.00019899,2]
[358349884,1744972028111,-105.13779147,0.000199,2]
[358349885,1744972039088,-1621.77265461,0.000199,2]
[358349886,1744972040941,300.0,0.000197,7]
[358349887,1744972042088,-944.65109905,0.000199,2]
[358349888,1744972043054,600.0,0.000198,7]
[358349889,1744972045164,1000.0,0.000199,7]
[358349890,1744972045237,-757.57513452,0.000199,2]
[358349891,1744972047080,-376.36381457,0.000199,2]
[358349892,1744972050097,-430.73742671,0.000199,2]
[358349893,1744972054100,-5212.45460609,0.000199,2]
[358349894,1744972054123,-500.91538115,0.00019973,2]
[358349895,1744972054144,-161.13113937,0.00019973,2]
[358349896,1744972054166,-550.17823847,0.00019973,2]
[358349897,1744972054188,-500.0,0.00019973,2]
[358349898,1744972054209,-158.32020602,0.00019973,2]
[358349899,1744972054231,-850.0,0.00019999,2]
[358349900,1744972054252,-176.29624967,0.00019999,2]
[358349901,1744972054276,-1819.28130262,0.0002,2]
[358349915,1744972231582,-152.25,0.0001999,2]
[358349916,1744972231591,-152.25,0.0001999,2]
[358349917,1744972231600,-12.83999999,0.0001999,2]
[358349934,1744972237543,-139.41000001,0.0001999,2]
[358349935,1744972237552,-152.25,0.0001999,2]
[358349936,1744972237562,-40.35669338,0.0001999,2]
[358349937,1744972237652,-111.89330662,0.0001999,2]
[358349938,1744972237662,-152.25,0.0001999,2]
[358349939,1744972237671,-152.25,0.0001999,2]
[358349940,1744972237681,-193.53089108,0.0001999,2]
[358349941,1744972237690,-187.73654901,0.0001999,2]
[358349942,1744972237700,-500.0,0.00019999,2]
[358349943,1744972237709,-300.0,0.00019999,2]
[358349944,1744972237719,-161.50977533,0.00019999,2]
[358349945,1744972237728,-113.33027796,0.00019999,2]
[358349946,1744972237740,-386.66972204,0.00019999,2]
[358349947,1744972237750,-251310.7523208,0.0002,2]
[358349948,1744972237765,-10585.01328012,0.0002,2]
[358349951,1744972239544,-607.46602351,0.0002,2]
[358349952,1744972240984,-0.0052429,0.0002,2]
[358349953,1744972241139,-1413189.38712473,0.0002,2]
[358349954,1744972241195,-1610.88355995,0.0002,2]
[358349955,1744972241207,-1000.0,0.0002,2]
[358349956,1744972241223,-2439.74720309,0.0002,2]
[358349957,1744972241234,-4930.9037663,0.0002,2]
[358349959,1744972242709,-3447.51354814,0.0002,2]
[358349960,1744972244032,-8426.14494924,0.0002,2]
[358349961,1744972244045,-1892.27020755,0.0002,2]
[358349962,1744972244056,-5843.19539045,0.0002,2]
[358349968,1744972245464,-8850.72486,0.0002,2]
[358349969,1744972245519,-6347.48965574,0.0002,2]
[358349970,1744972245574,-438.29656001,0.0002,2]
[358349971,1744972245586,-13436.78346318,0.0002,2]
[358349972,1744972245684,-5602.87500174,0.0002,2]
[358349973,1744972245740,-5847.09025535,0.0002,2]
[358349974,1744972245795,-2717.1631246,0.0002,2]
[358349977,1744972271280,-18225.29774993,0.0001999,2]
[358349978,1744972271310,-31774.70225007,0.0002,2]
[358350008,1744972835069,-300.0,0.00019999,2]
[358350009,1744972835098,-28676.61158141,0.0002,2]
[358350010,1744972934502,397.65275181,0.00019576,2]
[358350011,1744972935326,397.65275182,0.0001979,2]
[358350012,1744972987364,229.86793012,0.0002,2]
[358350013,1744973154128,-169.737325,0.000204,2]
[358350014,1744973154148,-156.73245421,0.000207,2]
[358350015,1744973154168,-111.25901726,0.000208,2]
[358350016,1744973192242,-186.83551262,0.000208,2]
[358350017,1744973192266,-172.65462754,0.000209,2]
[358350018,1744973226079,-77.34537246,0.000209,2]
[358350019,1744973226102,-190.98943779,0.00021,2]
[358350020,1744973238139,-159.01056221,0.00021,2]
[358350021,1744973238160,-250.0,0.0002233,2]
[358350022,1744973238182,-250.0,0.0002288,2]
[358350023,1744973238204,-400.0,0.00023,2]
[358350024,1744973238224,-217.6909423,0.0003103,2]
[358350025,1744973238244,-188.36931966,0.0003113,2]
[358350026,1744973238264,-217.6909423,0.0003123,2]
[358350027,1744973238290,-150.0,0.00031315,2]
[358350028,1744973238311,-1910.20622789,0.0003133,2]
[358350029,1744973238331,-150.0,0.00034548,10]
[358350030,1744973238353,-156.73245421,0.00036,8]
[358350031,1744973238374,-298.09452987,0.00036075,8]
[358350032,1744973238395,-2591.16604329,0.00038579,2]
[358350033,1744973238415,-2000.0,0.0003858,4]
[358350034,1744973238438,-300.0,0.00038999,5]
[358350035,1744973238459,-1173.86720101,0.00039,7]
[358350036,1744973240076,-1748.13074505,0.00039,7]
[358350037,1744973241088,-945.00328413,0.00039,7]
[358350038,1744973243125,-174.59499499,0.00039,7]
[358350039,1744973246094,-779.64977708,0.00039,7]
[358350045,1744973431514,-250.0,0.00038999,2]
[358350047,1744973431568,-158.44977896,0.00038999,2]
[358350048,1744973431579,-1346.85888,0.00039,7]
[358350049,1744973431591,-347.15603171,0.00039,7]
[358350050,1744973431621,-4931.85763884,0.00039,7]
[358350051,1744973431631,-400.0,0.00039999,5]
[358350052,1744973431641,-438.62222302,0.0004,2]
[358350053,1744973431650,-1026.18033559,0.0004,15]
[358350054,1744973431659,-8365.0397497,0.0004,30]
[358350055,1744973431669,-150.0,0.00041,14]
[358350056,1744973431679,-1244.70242338,0.000422,17]
[358350057,1744973431689,-260.426165,0.000425,90]
[358350058,1744973431699,-560.0,0.00042666,5]
[358350059,1744973431708,-645.567,0.00042715,65]
[358350060,1744973431718,-307.59,0.00043513,30]
[358350061,1744973431727,-999.99,0.00043513,2]
[358350062,1744973431737,-346.18,0.00043513,2]
[358350063,1744973431746,-168.43,0.00045341,2]
[358350064,1744973431755,-689.0,0.0004551,5]
[358350065,1744973431765,-56.95996447,0.00046735,2]
[358350066,1744973431777,-280.33654481,0.00046735,2]
[358350067,1744973431789,-470.18349059,0.00046735,2]
[358350068,1744973431808,-525.75,0.00043513,90]
[358350069,1744973431817,-180.37000013,0.00046735,2]
[358350070,1744973431830,-169.21,0.0004701,2]
[358350071,1744973431839,-250.0,0.00047029,120]
[358350072,1744973431849,-208.08,0.00047327,2]
[358350073,1744973431859,-729.00207847,0.00048,120]
[358350074,1744973431869,-1913.3575894,0.00048348,2]
[358350075,1744973431880,-8672.6924106,0.00048348,2]
[358350077,1744973431889,-2035.63,0.00048348,2]
[358350079,1744973431898,-3362.49,0.00048348,2]
[358350081,1744973431908,-1775.0,0.00048475,2]
[358350083,1744973431917,-2322.0,0.00049093,2]
[358350085,1744973431927,-156.09,0.00049166,120]
[358350087,1744973431936,-1000.0,0.0005,7]
[358350089,1744973431945,-158.24,0.00051564,120]
[358350091,1744973431955,-16021.62647593,0.000519,2]
[358350129,1744973437842,-1550.29322407,0.000519,2]
[358350130,1744973437851,-2450.9755,0.000519,2]
[358350131,1744973438011,-8108.04204395,0.00052,120]
[358350132,1744973438035,-2048.02384028,0.00052,120]
[358350133,1744973438045,-200.0,0.00052073,30]
[358350135,1744973438054,-200.0,0.00052073,30]
[358350136,1744973438064,-200.0,0.00052073,30]
[358350138,1744973438073,-200.0,0.00052073,30]
[358350140,1744973438082,-200.0,0.00052073,30]
[358350142,1744973438092,-200.0,0.00052073,30]
[358350144,1744973438101,-200.0,0.00052073,30]
[358350147,1744973438110,-200.0,0.00052073,30]
[358350149,1744973438120,-200.0,0.00052073,30]
[358350151,1744973438129,-200.0,0.00052073,30]
[358350153,1744973438138,-200.0,0.00052073,30]
[358350156,1744973438147,-200.0,0.00052073,30]
[358350157,1744973438157,-200.0,0.00052073,30]
[358350158,1744973438166,-336.299999,0.00052073,30]
[358350159,1744973438175,-299.68326322,0.00052073,60]
[358350161,1744973438184,-400.0,0.00052123,7]
[358350162,1744973438194,-151.0,0.00053,100]
[358350164,1744973438203,-15870.17521043,0.00053578,2]
[358350166,1744973439809,-7924.99999995,0.00053578,2]
[358350167,1744973439821,-104.82478962,0.00053578,2]
[358350168,1744973439830,-593.73,0.00053832,2]
[358350169,1744973439840,-151.69121092,0.000545,2]
[358350170,1744973439849,-150.0,0.00054794,120]
[358350171,1744973439859,-500.0,0.00054795,120]
[358350172,1744973439868,-150.0,0.00054795,120]
[358350173,1744973439878,-500.0,0.00054795,120]
[358350174,1744973439887,-500.0,0.00054795,120]
[358350175,1744973439897,-150.0,0.00054795,120]
[358350176,1744973439906,-150.0,0.00054795,120]
[358350177,1744973439916,-201.42277924,0.00054795,120]
[358350178,1744973439925,-500.0,0.00054795,120]
[358350179,1744973439935,-500.0,0.00054795,120]
[358350180,1744973439951,-150.0,0.00054795,2]
[358350181,1744973439961,-500.0,0.00054795,120]
[358350182,1744973439971,-150.0,0.00054795,120]
[358350183,1744973439980,-1000.0,0.00054863,2]
[358350184,1744973439990,-479.78846199,0.0005513,15]
[358350185,1744973440000,-9679.68,0.00055229,2]
[358350186,1744973440009,-1000.0,0.00055517,120]
[358350187,1744973440019,-500.0,0.00055667,2]
[358350188,1744973440028,-593.73,0.00056096,2]
[358350189,1744973440038,-150.0,0.00056164,120]
[358350190,1744973440047,-280.23678123,0.00057378,15]
[358350191,1744973440057,-500.0,0.00057378,15]
[358350192,1744973440067,-152.35918784,0.00057378,14]
[358350193,1744973440076,-290.48154422,0.00057378,15]
[358350194,1744973440086,-301.80563935,0.00057378,5]
[358350195,1744973440096,-500.0,0.00057378,15]
[358350196,1744973440106,-150.0,0.00057534,120]
[358350197,1744973440115,-5473.4583,0.00058078,2]
[358350198,1744973440125,-593.73,0.0005836,2]
[358350199,1744973440141,-158.24,0.0005841,120]
[358350200,1744973440155,-150.0,0.00058904,120]
[358350202,1744973440165,-645.568,0.00059536,119]
[358350203,1744973440176,-500.0,0.0005989,2]
[358350204,1744973440187,-500.0,0.00059899,120]
[358350205,1744973440196,-500.0,0.00059899,120]
[358350206,1744973440206,-500.0,0.00059899,120]
[358350207,1744973440216,-500.0,0.00059899,120]
[358350208,1744973440225,-500.0,0.00059899,120]
[358350209,1744973440235,-500.0,0.00059899,120]
[358350210,1744973440244,-500.0,0.00059899,120]
[358350211,1744973440254,-500.0,0.00059899,120]
[358350212,1744973440264,-500.0,0.00059899,120]
[358350213,1744973440274,-500.0,0.00059899,120]
[358350214,1744973440283,-500.0,0.00059899,120]
[358350215,1744973440293,-500.0,0.00059899,120]
[358350216,1744973440303,-500.0,0.00059899,120]
[358350217,1744973440312,-500.0,0.00059899,120]
[358350218,1744973440322,-500.0,0.00059899,120]
[358350219,1744973440331,-500.0,0.00059899,120]
[358350220,1744973440345,-6004.24211118,0.000599,15]
[358350221,1744973440363,-621.84426829,0.000599,15]
[358350222,1744973440372,-25000.0,0.0006,18]
[358350223,1744973440382,-1099.85399618,0.0006,27]
[358350224,1744973440393,-564.61173046,0.0006,27]
[358350225,1744973440405,-648.48151869,0.0006,27]
[358350226,1744973440422,-2718.05275467,0.0006,27]
[358350227,1744973440431,-150.0,0.00060273,120]
[358350228,1744973440440,-593.73,0.00060624,2]
[358350229,1744973440450,-156.09,0.00061457,120]
[358350230,1744973440459,-150.0,0.00061643,120]
[358350231,1744973440469,-500.0,0.00061644,120]
[358350232,1744973440478,-183.72419141,0.00061644,120]
[358350233,1744973440487,-500.0,0.00061644,120]
[358350234,1744973440497,-500.0,0.00061644,120]
[358350235,1744973440507,-150.0,0.00061644,120]
[358350236,1744973440516,-150.48288695,0.00061644,120]
[358350237,1744973440525,-500.0,0.00061644,120]
[358350238,1744973440535,-500.0,0.00061644,120]
[358350239,1744973440544,-500.0,0.00061644,120]
[358350240,1744973440554,-196.63524899,0.00061644,120]
[358350241,1744973440563,-6626.0863794,0.00062111,15]
[358350242,1744973440573,-1000.0,0.00062456,120]
[358350243,1744973440582,-581.77785208,0.00062788,80]
[358350244,1744973440591,-238.86637364,0.00062857,15]
[358350245,1744973440600,-593.73,0.00062888,2]
[358350246,1744973440610,-150.0,0.00063013,120]
[358350247,1744973440620,-6626.0863794,0.00064322,15]
[358350248,1744973440630,-150.0,0.00064383,120]
[358350249,1744973440639,-600.0,0.00064858,120]
[358350250,1744973440648,-2018.9932422,0.00065,60]
[358350251,1744973440658,-1000.0,0.00065,120]
[358350252,1744973440667,-593.73,0.00065152,2]
[358350253,1744973440677,-158.24,0.00065257,120]
[358350254,1744973440687,-1000.0,0.00065558,2]
[358350255,1744973440697,-2500.0,0.00065558,2]
[358350256,1744973440706,-2749.766,0.00065658,120]
[358350257,1744973440716,-2749.766,0.00065658,120]
[358350258,1744973440724,-2749.766,0.00065658,120]
[358350259,1744973440733,-2749.766,0.00065658,120]
[358350260,1744973440743,-2749.766,0.00065658,120]
[358350261,1744973440753,-150.0,0.00065753,120]
[358350262,1744973440762,-913.0,0.00066278,120]
[358350263,1744973440772,-2049.0,0.00066278,120]
[358350264,1744973440781,-1329.0,0.00066278,120]
[358350265,1744973440791,-806.0,0.00066278,2]
[358350266,1744973440801,-1440.0,0.00066358,120]
[358350267,1744973440811,-907.0,0.00066358,120]
[358350268,1744973440820,-1281.0,0.00066358,120]
[358350269,1744973440830,-545.0,0.00066358,120]
[358350270,1744973440839,-4152.0,0.00066358,120]
[358350271,1744973440849,-576.0,0.00066368,120]
[358350272,1744973440859,-6626.0863794,0.00066533,15]
[358350273,1744973440869,-150.0,0.00067123,120]
[358350274,1744973440878,-593.73,0.00067415,2]
[358350275,1744973440888,-2137.0,0.00068136,2]
[358350276,1744973440898,-676.21377386,0.00068136,120]
[358350292,1744973442673,-478.7644596,0.00068136,120]
[358350293,1744973442780,-2814.02176654,0.00068136,120]
[358350294,1744973442789,-152.0,0.00068136,2]
[358350295,1744973442798,-152.0,0.00068136,120]
[358350296,1744973442808,-150.0,0.00068136,120]
[358350297,1744973442817,-500.0,0.00068222,15]
[358350298,1744973442827,-200.7252664,0.00068493,120]
[358350299,1744973442835,-545.15232972,0.00068493,120]
[358350300,1744973442845,-545.15232972,0.00068493,120]
[358350301,1744973442854,-545.15232972,0.00068493,120]
[358350302,1744973442864,-545.15232972,0.00068493,120]
[358350303,1744973442874,-545.15232972,0.00068493,120]
[358350304,1744973442883,-545.15232972,0.00068493,120]
[358350305,1744973442892,-545.15232972,0.00068493,120]
[358350306,1744973442901,-545.15232972,0.00068493,120]
[358350307,1744973442911,-545.15232972,0.00068493,120]
[358350308,1744973442920,-545.15232972,0.00068493,120]
[358350309,1744973442930,-545.15232972,0.00068493,120]
[358350310,1744973442940,-545.15232972,0.00068493,120]
[358350311,1744973442950,-545.15232972,0.00068493,120]
[358350312,1744973442960,-545.15232972,0.00068493,120]
[358350313,1744973442970,-545.15232972,0.00068493,120]
[358350314,1744973442980,-545.15232972,0.00068493,120]
[358350315,1744973442989,-545.15232972,0.00068493,120]
[358350316,1744973443000,-545.15232972,0.00068493,120]
[358350317,1744973443010,-545.15232972,0.00068493,120]
[358350318,1744973443020,-545.15232972,0.00068493,120]
[358350319,1744973443030,-545.15232972,0.00068493,120]
[358350320,1744973443040,-545.15232972,0.00068493,120]
[358350321,1744973443050,-545.15232972,0.00068493,120]
[358350322,1744973443060,-545.15232972,0.00068493,120]